Cogmind - Beta 10.2 @@@ ROGUE MODE // 2022.01.30 @ 11:51:18 Player: Ol Swarmie Result: Destroyed by B-75 Beast with Magnetic Acceleration Cannon Performance ------------- Evolutions (4) 2000 Regions Visited (10) 2000 Robots Destroyed (104) 520 Value Destroyed (2802) 2802 Prototype IDs (11) 220 Alien Tech Used (0) 0 Bonus (928) 928 TOTAL SCORE: 8470 Bonus ------- High Alert Combat Kills 117 Follower Combat Kills 511 Aligned with FarCom 300 Cogmind --------- Core Integrity 0/850 Matter 371/500 Energy 100/100 System Corruption 3% Temperature Cool (12) Movement Core (100) Ox1 Location -6/Extension Parts ------- > --- POWER (2) -------- (None) > --- PROPULSION (4) --- (None) > --- UTILITY (7) ------ High-capacity Matter Pod Advanced Signal Interpreter > --- WEAPON (2) ------- (None) > --- INVENTORY (4) ---- Reaction Control System Cloak of Protection Improved Utility Shielding Guided Plasma Cannon Peak State ------------ > --- POWER ------------ Light Fission Core Micro Fission Core > --- PROPULSION ------- Gravmag System Gravmag System Combat Airjet Antigrav System > --- UTILITY ---------- Advanced Heat Sink Large Storage Unit Long-range Sensor Array Advanced Signal Interpreter Transport Network Coupler Improved ECM Suite Hacking Suite > --- WEAPON ----------- Guided Plasma Cannon Force Lance > --- INVENTORY -------- Improved Deuterium Engine Compact Battery High-capacity Matter Pod Structural Scanner Reaction Control System Cloak of Protection Improved Propulsion Shielding Improved Utility Shielding Heavy Missile Launcher [Rating: 68] Favorites ----------- Power Light Nuclear Core Engine Light Deuterium Engine Power Core Light Nuclear Core Propulsion Light Treads Treads Light Treads Leg Carbon-fiber Leg Wheel Wheel Hover Unit Gravmag System Flight Unit Improved VTOL Module Utility Large Storage Unit Device Advanced Heat Sink Storage Large Storage Unit Processor Targeting Computer Hackware Hacking Suite Protection Medium Reactive Plating Weapon Heavy Assault Rifle Energy Gun Beam Rifle Energy Cannon Guided Plasma Cannon Ballistic Gun Heavy Assault Rifle Ballistic Cannon Advanced Assault Cannon Launcher Grenade Launcher Special Weapon Plasma Cutter Impact Weapon Heavy Hammer Slashing Weapon Chainsword Piercing Weapon Force Lance Special Melee Weapon Improved Datajack Build | -11 -10 -10 -10 -9 -8 -7 -6 -6 -6 -6 ------- Run | Scr Mat Min Exi Min Mat Fac Fac Was Fac Ext Slots Evolved 8 | . . . . . 4 2 2 . . . Power 1 | . . . . . . . 1 . . . Propulsion 2 | . . . . . 1 . 1 . . . Utility 5 | . . . . . 3 2 . . . . Weapon . | . . . . . . . . . . . Parts Attached 226 | 8 14 7 7 8 46 74 30 8 9 15 Power 15 | 1 1 . 1 . 4 2 3 1 . 2 Engine 9 | 1 . . . . 3 1 3 . . 1 Core 6 | . 1 . 1 . 1 1 . 1 . 1 Reactor . | . . . . . . . . . . . Propulsion 36 | 3 4 . 1 . 5 19 1 . 1 2 Treads 5 | . 3 . 1 . 1 . . . . . Leg 11 | . . . . . 4 7 . . . . Wheel 5 | 3 1 . . . . 1 . . . . Hover 12 | . . . . . . 8 1 . 1 2 Flight 3 | . . . . . . 3 . . . . Utility 77 | 2 5 2 3 2 18 21 15 1 5 3 Device 43 | 1 1 . 1 1 9 14 10 1 4 1 Storage 13 | 1 3 1 . . 5 1 1 . . 1 Processor 11 | . 1 1 2 . 3 2 2 . . . Hackware 2 | . . . . . . . 1 . . 1 Protection 8 | . . . . 1 1 4 1 . 1 . Artifact . | . . . . . . . . . . . Weapon 98 | 2 4 5 2 6 19 32 11 6 3 8 Energy Gun 20 | . 1 2 . 1 5 8 1 1 1 . Energy Cannon 26 | . . . 1 1 9 6 3 2 . 4 Ballistic Gun 17 | 2 2 3 1 . . 8 . 1 . . Ballistic Cannon 5 | . . . . . . 1 2 1 1 . Launcher 7 | . 1 . . 2 1 1 1 . . 1 Special Weapon 1 | . . . . . . . 1 . . . Impact Weapon 10 | . . . . 2 2 6 . . . . Slashing Weapon 6 | . . . . . 1 1 3 1 . . Piercing Weapon 5 | . . . . . . 1 . . 1 3 Special Melee Weapon 1 | . . . . . 1 . . . . . Unidentified Prototypes 12 | . . . 3 . 3 5 1 . . . Parts Lost 28 | . . . . . 4 6 . 3 . 15 Power 6 | . . . . . 1 1 . 1 . 3 Propulsion 10 | . . . . . . 4 . 2 . 4 Utility 8 | . . . . . 2 . . . . 6 Weapon 4 | . . . . . 1 1 . . . 2 Highest Loss Streak 14 | . . . . . 3 2 . 2 . 14 Average Slot Usage (%) 92 | . 99 100 99 100 93 90 88 71 76 76 Engine 3 | . 11 . . . 6 4 5 6 3 . Core 6 | . 2 14 13 14 2 2 5 1 6 7 Treads 11 | . 21 28 28 28 9 . . . . . Leg 5 | . . . . . 17 12 . . . . Hover 6 | . . . . . . 8 26 16 17 20 Device 10 | . 3 . . . 17 17 18 20 20 18 Storage 10 | . 17 14 14 14 13 7 6 6 6 6 Processor 14 | . 7 14 13 13 6 22 19 13 13 12 Protection 1 | . . . . . 3 4 1 . 1 . Energy Gun 4 | . 1 7 14 . 7 3 . . . . Energy Cannon 2 | . . . 2 4 6 1 . 3 1 . Ballistic Gun 7 | . 25 20 11 14 . 2 . . . . Impact Weapon 1 | . . . . 9 . 1 . . . . Naked Turns . | . . . . . . . . . . . Heaviest Build 69 | 12 17 27 42 34 53 69 50 49 49 49 Greatest Support 60 | 26 40 40 40 40 60 43 44 44 33 60 Greatest Overweight (x) 5 | . 1 . 1 . 1 4 1 2 2 5 Average Overweight (x) . | . . . . . . . . 1 . . Largest Inventory Capacity 10 | 6 8 10 10 10 10 10 10 10 10 10 Average Capacity 9 | 5 6 9 10 10 10 10 10 10 10 9 Most Carried 10 | 6 7 10 10 10 10 10 10 10 10 10 Average Carried 9 | 4 6 8 9 9 9 9 9 9 9 9 Final Capacity 10 | 6 8 10 10 10 10 10 10 10 10 4 Final Carried 10 | 6 7 10 10 10 9 10 10 10 10 4 Class Distribution -------------------- 49% | Mutant 37% | Scavenger-Mutant 4% | Scout 4% | Scavenger-Scout Dominant Class ---------------- Mutant | -10/Materials Mutant | -10/Mines Mutant | -10/Exiles Mutant | -9/Mines Scavenger-Mutant | -8/Materials Scavenger-Mutant | -7/Factory Scavenger-Scout | -6/Factory Mutant | -6/Waste Assassin | -6/Factory Scout | -6/Extension Resources | -11 -10 -10 -10 -9 -8 -7 -6 -6 -6 -6 ----------- Run | Scr Mat Min Exi Min Mat Fac Fac Was Fac Ext Matter Collected 3270 | 274 244 244 124 140 501 1005 . 381 60 297 Remotely . | . . . . . . . . . . . Salvage Created 3403 | 85 238 141 . 130 1001 1318 . . . 490 Parts 192 | 13 15 8 . 14 51 56 . . . 35 Haulers Intercepted 5 | . . . . . 3 2 . . . . Recyclers Shooed 4 | 1 . . . . 1 1 . . . 1 Parts Field Recycled . | . . . . . . . . . . . Retrieved Matter . | . . . . . . . . . . . Parts Self-Destructed . | . . . . . . . . . . . Prevented . | . . . . . . . . . . . Kills | -11 -10 -10 -10 -9 -8 -7 -6 -6 -6 -6 ------- Run | Scr Mat Min Exi Min Mat Fac Fac Was Fac Ext Combat Hostiles Destroyed 65 | . 8 2 . 10 14 21 . . . 10 Melee 2 | . . . . . . 1 . . . 1 Guns 19 | . 5 2 . . 6 6 . . . . Cannons 18 | . . . . 2 6 9 . . . 1 AOE 24 | . 3 . . 8 2 3 . . . 8 Classes Destroyed 15 | 1 2 2 . 1 5 2 . . . 2 Worker 9 | . . 1 . . 5 2 . . . 1 Builder 9 | . . . . 2 1 2 . . . 4 Tunneler 7 | 4 . . . . . 1 . . . 2 Hauler 5 | . . . . . 3 2 . . . . Recycler 7 | . . . . . 3 3 . . . 1 Operator 1 | . . . . . . . . . . 1 Watcher 1 | . . . . . . 1 . . . . Swarmer 25 | . 3 . . 8 3 7 . . . 4 Grunt 24 | . 5 . . 2 8 6 . . . 3 Duelist 1 | . . . . . 1 . . . . . Protector 1 | . . . . . 1 . . . . . Sentry 5 | . . 2 . . . 2 . . . 1 Hunter 3 | . . . . . 1 2 . . . . Programmer 4 | . . . . . . 4 . . . . Behemoth 1 | . . . . . . . . . . 1 Thug 1 | . . . . . . . . . . 1 Best Kill Streak 14 | 2 3 2 . 4 9 6 . . . 14 Combat Bots Only 8 | . 3 2 . 4 6 5 . . . 8 Max Kills in Single Turn 3 | 1 2 1 . 3 2 3 . . . 3 Gunslinging . | . . . . . . . . . . . Exploded 3 | . 2 . . 3 1 2 . . . 3 Melee 1 | . . . . . . 1 . . . 1 Uniques/NPCs Destroyed . | . . . . . . . . . . . Combat | -11 -10 -10 -10 -9 -8 -7 -6 -6 -6 -6 -------- Run | Scr Mat Min Exi Min Mat Fac Fac Was Fac Ext Damage Taken 4887 | . 281 82 . 91 1019 1402 . 146 . 1866 Core 1067 | . 25 . . 23 39 130 . 23 . 827 Absorbed by Shields . | . . . . . . . . . . . Core Remaining (%) 88 | 100 . . . 80 92 81 . . . . Volleys Fired 217 | 17 21 5 . 10 60 68 1 5 . 30 Largest 2 | 2 2 2 . 2 2 2 1 1 . 1 Hottest 136 | 40 50 79 . 120 136 120 120 120 . 120 Shots Fired 350 | 34 42 10 . 11 114 104 1 5 . 29 Gun 229 | 34 40 10 . 2 64 79 . . . . Cannon 95 | . . . . 5 46 23 1 5 . 15 Launcher 26 | . 2 . . 4 4 2 . . . 14 Special . | . . . . . . . . . . . Kinetic 131 | 34 40 7 . 2 . 48 . . . . Thermal 160 | . . 3 . 5 110 21 1 5 . 15 Explosive 26 | . 2 . . 4 4 2 . . . 14 Electromagnetic 33 | . . . . . . 33 . . . . Robot Hit Streak 38 | 4 10 16 . 5 16 38 . 16 . 33 Robot Miss Streak 4 | 2 3 1 . . 4 4 . . . . Penetration Max 1 | . . . . . . 1 . . . . Secondary Targets 1 | . . . . . . 1 . . . . Max Gunslinging Chain 1 | . . . . . . 1 . . . . Shots Hit Robots 251 | 19 30 9 . 5 69 92 . 5 . 22 Core Hits 185 | 7 14 5 . 11 48 55 . 1 . 44 Critical Hits 8 | . 2 . . 1 . 5 . . . . Critical Kills 3 | . 1 . . . . 2 . . . . Critical Parts Destroyed 5 | . 1 . . 1 . 3 . . . . Melee Attacks 30 | . . . . 2 1 11 6 . 2 8 Impact 10 | . . . . 2 1 7 . . . . Slashing 9 | . . . . . . 3 6 . . . Piercing 11 | . . . . . . 1 . . 2 8 Sneak Attacks 8 | . . . . 2 . 2 . . . 4 Combat Hostiles . | . . . . . . . . . . . Follow-up Attacks . | . . . . . . . . . . . Damage Inflicted 8567 | 137 497 137 . 861 1561 2484 . 178 . 2712 Guns 2771 | 137 307 121 . 13 831 1362 . . . . Cannons 2078 | . . . . 183 534 757 . 178 . 426 Explosions 2526 | . 178 . . 415 192 143 . . . 1598 Melee 1135 | . . . . 241 . 221 . . . 673 Ramming 57 | . 12 16 . 9 4 1 . . . 15 Kinetic 1454 | 137 307 78 . 13 . 919 . . . . Thermal 2923 | . . 43 . 183 1365 728 . 178 . 426 Explosive 2526 | . 178 . . 415 192 143 . . . 1598 Electromagnetic 472 | . . . . . . 472 . . . . Impact 340 | . . . . 241 . 99 . . . . Slashing 44 | . . . . . . 44 . . . . Piercing 751 | . . . . . . 78 . . . 673 Highest Corruption 8 | . 1 1 1 1 . 8 . . 3 3 Average Corruption 2 | . 1 1 1 1 . 5 . . 2 3 Corruption Purged . | . . . . . . . . . . . Effects 72 | . 3 4 3 5 . 45 . . 2 10 Message Errors 14 | . 1 1 . 1 . 9 . . . 2 Matter Fused 8 | . . . . . . 7 . . . 1 Heat Flow Errors 9 | . . . . . . 6 . . 2 1 Energy Discharges 14 | . 1 1 2 . . 6 . . . 4 Data Loss (minor) 12 | . 1 1 1 2 . 5 . . . 2 Targeting Errors 13 | . . 1 . 1 . 11 . . . . Weapon Failures 2 | . . . . 1 . 1 . . . . Overload Shots . | . . . . . . . . . . . Overflow Damage 509 | . . . . 239 16 125 . . . 129 Projectiles 61 | . . . . . 16 28 . . . 17 Explosions 63 | . . . . 38 . . . . . 25 Melee 385 | . . . . 201 . 97 . . . 87 Knockbacks 3 | . . . . 2 . 1 . . . . Impact 3 | . . . . 2 . 1 . . . . Kinetic . | . . . . . . . . . . . Secondary . | . . . . . . . . . . . Self-Inflicted Damage 112 | . . . . 35 32 40 . . . 5 Shots 4 | . . . . 2 1 1 . . . . Rammed 15 | . 4 3 . 1 1 1 . . . 5 Targets Rammed 15 | . 4 3 . 1 1 1 . . . 5 Kicked . | . . . . . . . . . . . Crushed . | . . . . . . . . . . . Highest Temperature 502 | . 18 48 . 426 225 480 369 260 211 502 Average Temperature 119 | . 9 21 . 212 108 108 193 113 109 162 Received Heat Transfer 1155 | . 144 27 . 6 369 297 . 9 . 303 Effects 11 | . . . . 5 . 3 1 . . 2 Shutdowns 1 | . . . . . . . . . . 1 Energy Bleed 1 | . . . . . . . . . . 1 Interference 4 | . . . . 1 . 3 . . . . Short Circuit 1 | . . . . . . . 1 . . . Damage (major) 4 | . . . . 4 . . . . . . Siege Activations . | . . . . . . . . . . . Robots Corrupted 2 | . . . . . . 2 . . . . Combat Hostiles 2 | . . . . . . 2 . . . . Parts Fried 13 | . . . . 4 . 9 . . . . Impact Corruptions 8 | . . . . 6 . 2 . . . . Robots Melted . | . . . . . . . . . . . Combat Hostiles . | . . . . . . . . . . . Parts Melted 7 | . . . . . 4 2 . . . 1 Heat Transferred 6085 | . . 111 . 400 2737 1477 . 400 . 960 Parts Sabotaged . | . . . . . . . . . . . Parts Stolen . | . . . . . . . . . . . Parts Stripped . | . . . . . . . . . . . Power Chain Reactions . | . . . . . . . . . . . Missiles Intercepted . | . . . . . . . . . . . Alert | -11 -10 -10 -10 -9 -8 -7 -6 -6 -6 -6 ------- Run | Scr Mat Min Exi Min Mat Fac Fac Was Fac Ext Peak Influence 674 | 20 208 82 . 145 473 512 265 156 348 674 Initial 228 | . 13 22 . . 56 146 228 92 95 170 Average 202 | 7 88 34 . 82 303 241 248 121 185 442 Maximum Alert Level 2 | . 1 . . . 2 2 1 . 1 2 Low Security (%) 54 | 100 84 100 . 100 9 49 . 100 59 6 Level 1 30 | . 15 . . . 76 27 100 . 40 24 Level 2 14 | . . . . . 13 22 . . . 68 Level 3 . | . . . . . . . . . . . Level 4 . | . . . . . . . . . . . Level 5 . | . . . . . . . . . . . High Security . | . . . . . . . . . . . Max Security . | . . . . . . . . . . . Squads Dispatched 18 | . 1 . . 1 3 8 . . 3 2 Investigation 5 | . 1 . . . 1 1 . . 1 1 Extermination 5 | . . . . . . 5 . . . . Reinforcement 4 | . . . . 1 1 1 . . . 1 Assault 2 | . . . . . 1 1 . . . . Garrison 2 | . . . . . . . . . 2 . Intercept . | . . . . . . . . . . . Construction Impeded 3 | . . . . 1 . 1 . . . 1 Haulers Reinforced . | . . . . . . . . . . . Stealth | -11 -10 -10 -10 -9 -8 -7 -6 -6 -6 -6 --------- Run | Scr Mat Min Exi Min Mat Fac Fac Was Fac Ext Distress Signals 7 | . . . . . 4 1 . . . 2 Communications Jammed . | . . . . . . . . . . . Distress Signals . | . . . . . . . . . . . Times Spotted 126 | . 8 2 . 11 35 30 1 6 4 29 Peak Tracking Total 13 | . 3 2 . 4 9 4 1 1 2 13 Tactical Retreats 11 | . 1 . . . 1 6 1 . . 2 Traps | -11 -10 -10 -10 -9 -8 -7 -6 -6 -6 -6 ------- Run | Scr Mat Min Exi Min Mat Fac Fac Was Fac Ext Traps Triggered 4 | . . . . . . 1 2 . 1 . Indirectly . | . . . . . . . . . . . Trap Hack Attempts . | . . . . . . . . . . . Triggered . | . . . . . . . . . . . Disarmed . | . . . . . . . . . . . Reprogrammed . | . . . . . . . . . . . Reused . | . . . . . . . . . . . Traps Extracted . | . . . . . . . . . . . Installed . | . . . . . . . . . . . Triggered . | . . . . . . . . . . . Machines | -11 -10 -10 -10 -9 -8 -7 -6 -6 -6 -6 ---------- Run | Scr Mat Min Exi Min Mat Fac Fac Was Fac Ext Machines Disabled 6 | . . . . 1 2 1 . . 2 . Max in Single Turn 1 | . . . . 1 1 1 . . . . Garrison Access 2 | . . . . . 1 1 . . . . Energy Cycler 1 | . . . . . . . . . . 1 Machines Sabotaged . | . . . . . . . . . . . Garrisons Compromised . | . . . . . . . . . . . Overloaded Fab Kills . | . . . . . . . . . . . Fab Network Shutdowns . | . . . . . . . . . . . Hacking | -11 -10 -10 -10 -9 -8 -7 -6 -6 -6 -6 --------- Run | Scr Mat Min Exi Min Mat Fac Fac Was Fac Ext Machines Accessed 32 | . 6 . 4 1 2 7 2 . 2 8 Terminals 18 | . 5 . . . . 3 . . 2 8 Fabricators 1 | . . . . . . 1 . . . . Repair Stations 2 | . . . . . . 1 1 . . . Recycling Units 3 | . 1 . . . 1 1 . . . . Scanalyzers . | . . . . . . . . . . . Garrison Access 3 | . . . . . 1 1 1 . . . Total Hacks 113 | . 22 . 49 1 4 13 2 . 4 18 Successful 82 | . 15 . 49 1 2 4 . . 1 10 Failed 31 | . 7 . . . 2 9 2 . 3 8 Catastrophic 6 | . 2 . . . . 2 1 . 1 . Database Lockouts . | . . . . . . . . . . . Manual 40 | . 16 . 1 . 4 10 . . . 9 Terminals 47 | . 20 . . . . 5 . . 4 18 Fabricators 2 | . . . . . . 2 . . . . Repair Stations 3 | . . . . . . 2 1 . . . Recycling Units 7 | . 2 . . . 2 3 . . . . Scanalyzers . | . . . . . . . . . . . Garrison Access 4 | . . . . . 2 1 1 . . . Terminal Hacks 67 | . 8 . 49 1 . 2 . . 1 6 Record 52 | . . . 49 . . . . . . 3 Open Door 5 | . . . . 1 . . . . 1 3 Branch Access Points 2 | . 2 . . . . . . . . . Emergency Access Points 1 | . 1 . . . . . . . . . Locate Traps 3 | . 2 . . . . 1 . . . . Recall Extermination 1 | . . . . . . 1 . . . . Zone Layout 3 | . 3 . . . . . . . . . Fabricator Hacks 1 | . . . . . . 1 . . . . Network Status 1 | . . . . . . 1 . . . . Repair Station Hacks . | . . . . . . . . . . . Recycling Unit Hacks . | . . . . . . . . . . . Scanalyzer . | . . . . . . . . . . . Garrison Access Hacks . | . . . . . . . . . . . Unauthorized Hacks 14 | . 7 . . . 2 1 . . . 4 Terminals 10 | . 6 . . . . . . . . 4 Track 3 | . 3 . . . . . . . . . Botnet 7 | . 3 . . . . . . . . 4 Fabricators . | . . . . . . . . . . . Repair Stations . | . . . . . . . . . . . Recycling Units 4 | . 1 . . . 2 1 . . . . Reject 2 | . . . . . 1 1 . . . . Tunnel 2 | . 1 . . . 1 . . . . . Scanalyzers . | . . . . . . . . . . . Garrison Access . | . . . . . . . . . . . Data Cores Recovered 1 | . . . . . . . . . . 1 Used 1 | . . . . . . . . . . 1 Hacking Detections 25 | . 6 . . . 2 8 2 . 2 5 Full Trace Events 5 | . 2 . . . . 1 . . 1 1 Feedback Events 2 | . 1 . . . . . . . 1 . Corruption 2 | . 1 . . . . . . . 1 . Feedback Blocked . | . . . . . . . . . . . Robot Schematics Acquired . | . . . . . . . . . . . Robots Built . | . . . . . . . . . . . Matter . | . . . . . . . . . . . Time . | . . . . . . . . . . . Total Robot Build Rating . | . . . . . . . . . . . Part Schematics Acquired . | . . . . . . . . . . . Parts Built . | . . . . . . . . . . . Matter . | . . . . . . . . . . . Time . | . . . . . . . . . . . Total Part Build Rating . | . . . . . . . . . . . Parts Repaired . | . . . . . . . . . . . Time . | . . . . . . . . . . . Parts Recycled . | . . . . . . . . . . . Recycled Matter . | . . . . . . . . . . . Retrieved Matter . | . . . . . . . . . . . Retrieved Components . | . . . . . . . . . . . Parts Scanalyzed . | . . . . . . . . . . . Part Schematics Acquired . | . . . . . . . . . . . Parts Damaged . | . . . . . . . . . . . Bothacking | -11 -10 -10 -10 -9 -8 -7 -6 -6 -6 -6 ------------ Run | Scr Mat Min Exi Min Mat Fac Fac Was Fac Ext Used RIF Installer . | . . . . . . . . . . . Robots Hacked . | . . . . . . . . . . . Non-combat . | . . . . . . . . . . . Combat . | . . . . . . . . . . . Robot Hacks Applied . | . . . . . . . . . . . Relay Couplers Released 1 | . . . . . 1 . . . . . Machine Destruction 1 | . . . . . 1 . . . . . Robots Rewired 3 | . . . . . . . . . . 3 Allies Hacked . | . . . . . . . . . . . Hacks Repelled . | . . . . . . . . . . . Allies | -11 -10 -10 -10 -9 -8 -7 -6 -6 -6 -6 -------- Run | Scr Mat Min Exi Min Mat Fac Fac Was Fac Ext Total Allies 27 | . . . . . . . . 18 . 9 Largest Group 18 | . . . . . . . . 18 11 12 Highest-Rated Group 650 | . . . . . . . . 650 454 354 Highest-Rated Ally 50 | . . . . . . . . 50 50 50 Total Orders . | . . . . . . . . . . . Ally Attacks 196 | . . . . . . . . 118 21 57 Total Damage 7093 | . . . . . . . . 4765 835 1493 Kills 31 | . . . . . . . . 12 8 11 Allies Corrupted 1 | . . . . . . . . . 1 . Allies Melted . | . . . . . . . . . . . Intel | -11 -10 -10 -10 -9 -8 -7 -6 -6 -6 -6 ------- Run | Scr Mat Min Exi Min Mat Fac Fac Was Fac Ext Robot Analysis Total . | . . . . . . . . . . . Derelict Logs Recovered 2 | . . 1 . 1 . . . . . . Drone Launches 3 | . . . . . 3 . . . . . Drone Recoveries . | . . . . . . . . . . . Exploration | -11 -10 -10 -10 -9 -8 -7 -6 -6 -6 -6 ------------- Run | Scr Mat Min Exi Min Mat Fac Fac Was Fac Ext Turns Passed 7427 | 115 818 533 886 775 952 1979 362 237 227 543 Spaces Moved 5350 | 62 372 304 542 454 401 1722 482 188 239 584 Core 20 | 3 . . . . . . . . . 17 Treads 1619 | . 206 304 542 454 113 . . . . . Legs 889 | . . . . . 288 601 . . . . Wheels 225 | 59 166 . . . . . . . . . Hover 2597 | . . . . . . 1121 482 188 239 567 Flight . | . . . . . . . . . . . Fastest Speed 45 | 50 80 160 160 160 120 45 45 45 52 52 Average Speed 105 | 84 128 160 160 160 135 87 51 111 84 59 Slowest Speed 300 | 90 160 160 180 160 160 240 105 176 176 300 Overloaded Moves . | . . . . . . . . . . . Propulsion Burnouts . | . . . . . . . . . . . Robots Hopped . | . . . . . . . . . . . Cave-ins Triggered . | . . . . . . . . . . . Exploration Rate (%) 45 | 3 42 41 94 85 49 34 10 84 8 49 Regions Visited 10 Branch Regions 4 Pre-discovered Areas 4 | . 1 . 1 1 1 . . . . . Known Exits Taken 4 | . 1 1 1 . . . . . 1 . Unknown Exits Taken 4 | 1 . . . 1 1 1 . . . . Scrap Searched 3 | . . 1 . 2 . . . . . . Spaces Dug 22 | . . . . 6 1 7 6 . 1 1 Terrain Destroyed 136 | . 11 . . 34 16 15 7 . 1 52 Melee 15 | . . . . . 1 6 6 . 1 1 Projectile 5 | . . . . . . 2 1 . . 2 AOE 116 | . 11 . . 34 15 7 . . . 49 Terrain Rammed . | . . . . . . . . . . . Walls Destroyed . | . . . . . . . . . . . Machines Disabled . | . . . . . . . . . . . Actions | -11 -10 -10 -10 -9 -8 -7 -6 -6 -6 -6 --------- Run | Scr Mat Min Exi Min Mat Fac Fac Was Fac Ext Total 6703 | 93 673 342 562 484 690 2075 588 211 259 726 Wait 556 | . 245 2 . 5 139 98 26 . 1 40 Move 5341 | 61 371 303 541 453 400 1721 482 187 238 584 Hop . | . . . . . . . . . . . Pick Up 74 | 6 6 10 6 2 15 24 4 1 . . Fast Attach 105 | 8 5 3 2 . 18 35 16 6 7 5 Attach 45 | . 1 1 1 1 8 22 9 . . 2 Detach 49 | . 1 2 2 1 4 21 12 4 2 . Swap 77 | . 8 3 4 7 20 18 5 2 2 8 Drop 133 | 1 11 10 6 2 24 51 14 6 7 1 Fire 217 | 17 21 5 . 10 60 68 1 5 . 30 Melee 30 | . . . . 2 1 11 6 . 2 8 Ram 5 | . . . . . . . . . . 5 Kick 1 | . . . . . . 1 . . . . Crush 9 | . 4 3 . 1 1 . . . . . Escape Stasis 18 | . . . . . . 5 13 . . . Rewire 43 | . . . . . . . . . . 43 Trap . | . . . . . . . . . . . Miscellaneous . | . . . . . . . . . . . Route ------- -11/Scrapyard -10/Materials (discovered 3 exits: *Mat / *Min x2) -10/Mines (discovered 2 exits: *Mat / *Exi) -10/Exiles (discovered 2 exits: *Min x2) -9/Mines -8/Materials -7/Factory (discovered 2 exits: *Fac x2) -6/Factory -6/Waste -6/Factory -6/Extension (discovered 1 exit: *Fac) History --------- Turn | Location | Event 21 | -11/Scrapyard | Discovered new exit (range 16) 116 | -11/Scrapyard | Entered Materials 319 | -10/Materials | Build established: Mutant 501 | -10/Materials | Identified exit to Mines 845 | -10/Materials | Discovered new exit (range 16) 934 | -10/Materials | Entered Mines 971 | -10/Mines | Learned Materials emergency access door positions 1078 | -10/Mines | Discovered new exit (range 8) 1093 | -10/Mines | Identified exit to Materials 1448 | -10/Mines | Deemed a non-threat by the Exiles lab entrance 1448 | -10/Mines | Discovered new exit (range 5) 1465 | -10/Mines | Identified exit to Exiles 1467 | -10/Mines | Entered Exiles 1488 | -10/Exiles | Discovered new exit (range 15) 1509 | -10/Exiles | Identified exit to Mines 1544 | -10/Exiles | Met 8R-AWN 1563 | -10/Exiles | Met EX-HEX 1688 | -10/Exiles | Met EX-DEC 1753 | -10/Exiles | Visited The Gauntlet 2007 | -10/Exiles | Learned location of Zion (-6) 2050 | -10/Exiles | Met EX-BIN 2079 | -10/Exiles | Aligned with FarCom system 2081 | -10/Exiles | Given EX-Vault access code 2146 | -10/Exiles | Opened EX-Vault 2156 | -10/Exiles | Found Prototype Device 2158 | -10/Exiles | Identified Cloak of Protection 2163 | -10/Exiles | Found Prototype Energy Cannon 2164 | -10/Exiles | Identified Gui. Plasma Cannon 2167 | -10/Exiles | Found Prototype Processor 2168 | -10/Exiles | Identified 0b10 Alert Chip 2222 | -10/Exiles | Warned to stay clear of 0b10 Research branches 2334 | -10/Exiles | Discovered exit to Mines (range 14) 2353 | -10/Exiles | Stole two prototypes: Cloak of Protection, Gui. Plasma Cannon 2353 | -10/Exiles | Entered Mines 2969 | -9/Mines | Learned location of Recycling (-8) 3085 | -9/Mines | Discovered new exit (range 8) 3099 | -9/Mines | Found the Drone Emporium 3109 | -9/Mines | Found Prototype Device 3128 | -9/Mines | Entered Materials 3128 | -8/Materials | Evolved 4 slots: Propulsion x1, Utility x3 3129 | -8/Materials | Identified Decoy Drone Bay 3398 | -8/Materials | Lost 3 parts (1p1u1w) 3705 | -8/Materials | Build established: Scavenger-Mutant 4047 | -8/Materials | Discovered new exit (range 8) 4080 | -8/Materials | Entered Factory 4080 | -7/Factory | Evolved 2 slots: Utility x2 4082 | -7/Factory | FarCom data flow suspended 4245 | -7/Factory | Discovered new exit (range 15) 6043 | -7/Factory | Discovered new exit (range 13) 6059 | -7/Factory | Entered another Factory area 6059 | -6/Factory | Evolved 2 slots: Power x1, Propulsion x1 6342 | -6/Factory | Discovered new exit (range 14) 6365 | -6/Factory | Identified exit to Factory 6421 | -6/Factory | Sucked down chute 6421 | -6/Factory | Entered Waste 6425 | -6/Waste | Spotted C-40 Crusher 6439 | -6/Waste | Warlord forces began an assault 6442 | -6/Waste | Allies destroyed C-40 Crusher 6519 | -6/Waste | Spotted C-40 Crusher 6529 | -6/Waste | Allies destroyed C-40 Crusher 6534 | -6/Waste | Spotted C-40 Crusher 6541 | -6/Waste | Allies destroyed C-40 Crusher 6585 | -6/Waste | Spotted C-40 Crusher 6589 | -6/Waste | Allies destroyed C-40 Crusher 6589 | -6/Waste | Spotted C-40 Crusher 6592 | -6/Waste | Allies destroyed C-40 Crusher 6600 | -6/Waste | Spotted C-40 Crusher 6605 | -6/Waste | Allies destroyed C-40 Crusher 6625 | -6/Waste | Discovered new exit (range 15) 6655 | -6/Waste | Identified exit to Factory 6658 | -6/Waste | Entered Factory 6658 | -6/Factory | Accompanied by 11 allies 6780 | -6/Factory | Garrison activated, responded to threat 6868 | -6/Factory | Discovered new exit (range 10) 6872 | -6/Factory | Identified exit to Extension 6885 | -6/Factory | Entered Extension 6885 | -6/Extension | Accompanied by 4 allies 6929 | -6/Extension | Rescued a captive Derelict 6931 | -6/Extension | Rescued a captive Derelict 6954 | -6/Extension | Rescued a captive Derelict 6956 | -6/Extension | Rescued a captive Derelict 6995 | -6/Extension | Energy Cycler disabled 6996 | -6/Extension | Rescued a captive Derelict 6998 | -6/Extension | Rescued a captive Derelict 6998 | -6/Extension | Rescued a captive Derelict 7000 | -6/Extension | Rescued a captive Derelict 7289 | -6/Extension | Spotted B-75 Beast 7317 | -6/Extension | Destroyed B-75 Beast 7346 | -6/Extension | Spotted B-75 Beast 7353 | -6/Extension | Discovered exit to Factory (range 13) 7360 | -6/Extension | Disrupted transfer network 7371 | -6/Extension | Destroyed 8 combat bots 7395 | -6/Extension | Core integrity fell below 50% 7416 | -6/Extension | Lost 14 parts (3p4n5u2w) 7417 | -6/Extension | Core integrity fell below 20% 7428 | -6/Extension | Destroyed by B-75 Beast with Magnetic Acceleration Cannon Last Messages --------------- 07405_ U-05 Engineer lays Concrete. 07406_ U-05 Engineer builds a Wall. 07409_ Acquired 9 matter. 07411_ U-05 Engineer builds a Wall. 07411_ Knocked back. 07415_ U-05 Engineer lays Concrete. 07416_ U-05 Engineer builds a Wall. 07416_ Lrg. Storage Unit destroyed. 07416_ Knocked back. 07417_ Extracted 134 matter. 07418_ Acquired Hcp. Matter Pod. 07420_ U-05 Engineer lays Concrete. 07423_ System corrupted: Component data lost. 07423_ Slammed into B-75 Beast. 07424_ U-05 Engineer lays Concrete. 07424_ Slammed into B-75 Beast. 07425_ U-05 Engineer lays Concrete. 07425_ Slammed into B-75 Beast. 07426_ U-05 Engineer builds a Wall. 07426_ Slammed into B-75 Beast. Map ----- +----------------------------------------------------+ | ???????????????#%#???????????????????????????????? | | ???????????????#[#???????????????????????????????? | | ???????????????#%#???????????????????????????????? | | ???????????????#%#???????????????????????????????? | | ???????????????#!#???????????????????????????????? | | ???????????????#!#???????????????????????????????? | | ???????????????#!#???????????????????????????????? | | ???????????????#!#???????????????????????????????? | | ???????????????#%#???????????????????????????????? | | ???????????????#=#???????????????????????????????? | | ???????????????#%#???????????????????????????????? | | ???????????????%!#???????????????????????????????? | | ???????????????#=#??????????#????????????????????? | | ??????????######!#????????? #????????????????????? | | ??????????# # #]#####????? #????????????????????? | | ??????????# #%# ####??%#????????????????????? | | ??????????# #%### ## ###w###??????????????????? | | ?????????## u "" ""#??????????????????? | | ?????????# % " " #??????????????????? | | ????????# # *% %!#??????????????????? | | ????###?## [ % #??????????????????? | | #####"### ! ##########?????????? | | = = !*%= ????????? | | %*%! s !% ????????? | | ! [ ????????? | | ! k @ | ????????? | | | =% BB %=u ????????? | | ######## # # | BB ##########?????????? | | ??????# # #??????????????????? | | ??????### # #??????????????????? | | ????????###### #??????????????????? | | ?????????????# #??????????????????? | | ?????????????######T# # #####??????????????????? | | ??????????????????### < ###??????????????????????? | | ????????????????????#####????????????????????????? | | | | | | | | | | | | | | | | | | | | | | | | | | | | | | | +----------------------------------------------------+ Best States ------------- Heat Dissipation 72 Energy Generation 31 Energy Capacity 565 Matter Stores 356 Matter Capacity 500 Sight Range 16 Robot Scan Range 20 Terrain Scan Range 24 Terrain Scan Density 10 ECM Strength 2 Cloak Strength 5 Armor Coverage 450 Resistance: KI 30 Propulsion Shielding 66 Utility Shielding 66 Evasion (%) 56 Targeting Accuracy 13 Target Analysis 5 Recoil Reduction 3 Offensive Hacking 10 Item Schematics ----------------- None Robot Schematics ------------------ None Fabricated ------------ Nothing Alien Tech Used ----------------- None Achievements -------------- A New Friend Dynamic Key Let's See Who's Tougher Slippery One Challenges ------------ None Game ------ Seed GammaMiniGreatsword Manual? 0 Play Time 03:24:54 Cumulative 20.5 hours Start 2022.01.17 @ 15:36:12 End 2022.01.30 @ 11:51:18 Sessions 5 Manual Loads 0 Difficulty Rogue Special Mode None Game No. 15 Rogue 15 Adventurer 0 Explorer 0 Win Type - Total 0 Types 0/0/0/0/0/0/0/0/0 Lore% 20 Gallery% 24 Achievement% 18 Wizard Run 0 Options --------- ASCII 0 Keyboard 1 Movement Numpad Keybinds 0 Fullscreen 2 Font 24/Proggy Map View 76x50 Tactical HUD 1 Map Filters NONE Filters NONE Steam 1 RUN: e92ad2ba-0ca2-431c-9b02-56e57aadd85f